[Event "Early-Titled-Tuesday-Blitz-October-10-2023"]
[Site "Chess.com"]
[Date "2023.10.10"]
[Round "6"]
[White "THE_PLAYER6"]
[Black "tdf98pantani"]
[Result "0-1"]
[WhiteElo "2455"]
[BlackElo "2636"]
[TimeControl "180+1"]
[EndTime "9:04:29 PDT"]
[Termination "tdf98pantani won on time"]

1. d4 {[%clk 0:03:00.9]} 1... Nf6 {[%clk 0:02:52.6]} 2. c4 {[%clk 0:03:01.1]}
2... e6 {[%clk 0:02:52.6]} 3. Nc3 {[%clk 0:03:01.5]} 3... Bb4 {[%clk 0:02:51.5]}
4. Nf3 {[%clk 0:03:00.4]} 4... O-O {[%clk 0:02:46.9]} 5. Bd2 {[%clk 0:02:57.4]}
5... b6 {[%clk 0:02:46.3]} 6. e3 {[%clk 0:02:57.3]} 6... Bb7 {[%clk 0:02:45.2]}
7. Bd3 {[%clk 0:02:56.7]} 7... Bxc3 {[%clk 0:02:37.9]} 8. Bxc3 {[%clk
0:02:56.6]} 8... Ne4 {[%clk 0:02:37.6]} 9. Rc1 {[%clk 0:02:53.7]} 9... f5 {[%clk
0:02:36.8]} 10. O-O {[%clk 0:02:52.3]} 10... d6 {[%clk 0:02:35.5]} 11. Bxe4
{[%clk 0:02:32.7]} 11... Bxe4 {[%clk 0:02:34.1]} 12. d5 {[%clk 0:02:32.8]} 12...
Bxf3 {[%clk 0:02:31.9]} 13. Qxf3 {[%clk 0:02:26.1]} 13... e5 {[%clk 0:02:31.9]}
14. e4 {[%clk 0:02:18.9]} 14... Qg5 {[%clk 0:02:27]} 15. exf5 {[%clk 0:02:16.2]}
15... Rxf5 {[%clk 0:02:26.8]} 16. Qe2 {[%clk 0:02:15.3]} 16... Nd7 {[%clk
0:02:24.7]} 17. b4 {[%clk 0:02:13.4]} 17... Raf8 {[%clk 0:02:23.8]} 18. Bd2
{[%clk 0:02:11.8]} 18... Qh4 {[%clk 0:02:23.1]} 19. g3 {[%clk 0:02:09.4]} 19...
Qh3 {[%clk 0:02:22.3]} 20. f4 {[%clk 0:02:04.4]} 20... exf4 {[%clk 0:02:15.9]}
21. Bxf4 {[%clk 0:02:02.6]} 21... Ne5 {[%clk 0:02:06.1]} 22. Bxe5 {[%clk
0:01:59.6]} 22... Rxe5 {[%clk 0:02:05.7]} 23. Rxf8+ {[%clk 0:01:58.7]} 23...
Kxf8 {[%clk 0:02:05.5]} 24. Rf1+ {[%clk 0:01:59.2]} 24... Kg8 {[%clk 0:02:02.7]}
25. Qf3 {[%clk 0:01:52.3]} 25... h6 {[%clk 0:02:01.5]} 26. a4 {[%clk 0:01:08.4]}
26... Qd7 {[%clk 0:01:50.9]} 27. a5 {[%clk 0:01:06.7]} 27... Qe8 {[%clk
0:01:39.3]} 28. axb6 {[%clk 0:00:59.5]} 28... axb6 {[%clk 0:01:39.3]} 29. Rf2
{[%clk 0:00:58.7]} 29... Re3 {[%clk 0:01:38]} 30. Qf5 {[%clk 0:00:56.6]} 30...
Re1+ {[%clk 0:01:37.1]} 31. Kg2 {[%clk 0:00:56.4]} 31... Qe4+ {[%clk 0:01:35.1]}
32. Qxe4 {[%clk 0:00:55.4]} 32... Rxe4 {[%clk 0:01:35.7]} 33. Rc2 {[%clk
0:00:55.3]} 33... Re3 {[%clk 0:01:33.1]} 34. c5 {[%clk 0:00:51.6]} 34... bxc5
{[%clk 0:01:29.9]} 35. bxc5 {[%clk 0:00:52.5]} 35... Rd3 {[%clk 0:01:29.4]} 36.
cxd6 {[%clk 0:00:40.2]} 36... cxd6 {[%clk 0:01:29.4]} 37. h4 {[%clk 0:00:37.9]}
37... Rxd5 {[%clk 0:01:29.3]} 38. Kf3 {[%clk 0:00:38.6]} 38... Rd4 {[%clk
0:01:26.4]} 39. Ke3 {[%clk 0:00:37]} 39... Ra4 {[%clk 0:01:25.7]} 40. Rc6 {[%clk
0:00:34.6]} 40... d5 {[%clk 0:01:18]} 41. Rc5 {[%clk 0:00:34.6]} 41... Re4+
{[%clk 0:01:15.6]} 42. Kf3 {[%clk 0:00:25.7]} 42... Rd4 {[%clk 0:01:11]} 43. Ke3
{[%clk 0:00:26.1]} 43... Rd1 {[%clk 0:01:11.2]} 44. Ke2 {[%clk 0:00:25.1]} 44...
Rd4 {[%clk 0:01:08.2]} 45. Ke3 {[%clk 0:00:22.1]} 45... Re4+ {[%clk 0:01:08.4]}
46. Kf3 {[%clk 0:00:20.3]} 46... Re5 {[%clk 0:01:09]} 47. Kf4 {[%clk 0:00:11.7]}
47... Rh5 {[%clk 0:01:08.9]} 48. Kg4 {[%clk 0:00:07.4]} 48... g6 {[%clk
0:01:09.2]} 49. Kf4 {[%clk 0:00:02.1]} 49... Rf5+ {[%clk 0:01:07.7]} 50. Kg4
{[%clk 0:00:01.4]} 50... h5+ {[%clk 0:01:07.7]} 51. Kh3 {[%clk 0:00:01.1]} 51...
Kf7 {[%clk 0:01:06.8]} 0-1

[Event "Early-Titled-Tuesday-Blitz-October-10-2023"]
[Site "Chess.com"]
[Date "2023.10.10"]
[Round "6"]
[White "FoxOnTheRun97"]
[Black "Tssunami"]
[Result "0-1"]
[WhiteElo "2526"]
[BlackElo "2413"]
[TimeControl "180+1"]
[EndTime "9:04:30 PDT"]
[Termination "Tssunami won by resignation"]

1. d4 {[%clk 0:03:00.4]} 1... d5 {[%clk 0:02:54.8]} 2. c4 {[%clk 0:03:00.4]}
2... e6 {[%clk 0:02:53.1]} 3. Nf3 {[%clk 0:03:00.6]} 3... a6 {[%clk 0:02:53.2]}
4. cxd5 {[%clk 0:02:58.2]} 4... exd5 {[%clk 0:02:52.8]} 5. Bf4 {[%clk
0:02:58.4]} 5... Nf6 {[%clk 0:02:52.1]} 6. e3 {[%clk 0:02:58.7]} 6... c6 {[%clk
0:02:39.2]} 7. Bd3 {[%clk 0:02:56.9]} 7... Qb6 {[%clk 0:02:34]} 8. Qc2 {[%clk
0:02:52.4]} 8... Bg4 {[%clk 0:02:30]} 9. Ne5 {[%clk 0:02:49.4]} 9... Bh5 {[%clk
0:02:27.7]} 10. Nd2 {[%clk 0:02:32.6]} 10... Nbd7 {[%clk 0:02:17.2]} 11. O-O
{[%clk 0:02:27.2]} 11... Bg6 {[%clk 0:02:14.8]} 12. Nxg6 {[%clk 0:02:19.8]}
12... hxg6 {[%clk 0:02:14.8]} 13. Rfe1 {[%clk 0:02:13.6]} 13... Be7 {[%clk
0:02:08.3]} 14. e4 {[%clk 0:02:03.1]} 14... dxe4 {[%clk 0:02:06.8]} 15. Nxe4
{[%clk 0:02:02.5]} 15... O-O {[%clk 0:02:06.4]} 16. Ng5 {[%clk 0:01:35.8]} 16...
Rae8 {[%clk 0:02:00.4]} 17. Be5 {[%clk 0:00:44.1]} 17... Nd5 {[%clk 0:01:49.5]}
18. Nxf7 {[%clk 0:00:38.6]} 18... Rxf7 {[%clk 0:01:46.8]} 19. Bxg6 {[%clk
0:00:38.3]} 19... Ref8 {[%clk 0:01:46.7]} 20. Bxf7+ {[%clk 0:00:36.1]} 20...
Rxf7 {[%clk 0:01:47.6]} 21. Qg6 {[%clk 0:00:33.5]} 21... Nf8 {[%clk 0:01:46.4]}
22. Qg4 {[%clk 0:00:30.2]} 22... Qxb2 {[%clk 0:01:27.5]} 23. h4 {[%clk
0:00:29.9]} 23... Qxf2+ {[%clk 0:01:24.9]} 24. Kh2 {[%clk 0:00:30]} 24... Qxh4+
{[%clk 0:01:12.7]} 25. Qxh4 {[%clk 0:00:30]} 25... Bxh4 {[%clk 0:01:13.6]} 26.
Re4 {[%clk 0:00:29.5]} 26... Bd8 {[%clk 0:01:09.6]} 27. Rb1 {[%clk 0:00:23.9]}
27... Nc3 {[%clk 0:01:08.8]} 28. Ree1 {[%clk 0:00:22.4]} 28... Nxb1 {[%clk
0:01:08.9]} 29. Rxb1 {[%clk 0:00:23.3]} 29... Ng6 {[%clk 0:01:08.2]} 30. Bg3
{[%clk 0:00:16.2]} 30... Bc7 {[%clk 0:01:08.3]} 31. Re1 {[%clk 0:00:12.6]} 31...
Bxg3+ {[%clk 0:01:06.5]} 32. Kxg3 {[%clk 0:00:13.5]} 32... Re7 {[%clk
0:01:07.1]} 33. Rb1 {[%clk 0:00:12.7]} 33... Kf7 {[%clk 0:01:05.6]} 34. Kf3
{[%clk 0:00:12.2]} 34... Nf8 {[%clk 0:01:05.4]} 35. Rb4 {[%clk 0:00:11]} 35...
Ne6 {[%clk 0:01:05.5]} 36. Ke4 {[%clk 0:00:09.8]} 36... Nc7+ {[%clk 0:01:04.1]}
37. Kd3 {[%clk 0:00:10]} 37... Nd5 {[%clk 0:01:04.6]} 38. Rb1 {[%clk 0:00:09.9]}
38... b5 {[%clk 0:01:03.3]} 39. g3 {[%clk 0:00:09.4]} 39... Re3+ {[%clk
0:01:03]} 40. Kd2 {[%clk 0:00:09.9]} 40... Rxg3 {[%clk 0:01:03.3]} 41. Rf1+
{[%clk 0:00:10.5]} 41... Ke6 {[%clk 0:01:03.1]} 42. Rf8 {[%clk 0:00:10.9]} 42...
a5 {[%clk 0:01:00.6]} 43. Rc8 {[%clk 0:00:09.7]} 43... Kd7 {[%clk 0:01:00.6]}
44. Ra8 {[%clk 0:00:09]} 44... a4 {[%clk 0:01:01]} 45. Ra7+ {[%clk 0:00:07.2]}
45... Kd6 {[%clk 0:01:01.1]} 46. Rf7 {[%clk 0:00:06.5]} 46... b4 {[%clk
0:01:00.6]} 47. Kc2 {[%clk 0:00:06.1]} 47... b3+ {[%clk 0:01:00.4]} 48. axb3
{[%clk 0:00:06.1]} 48... axb3+ {[%clk 0:01:01.3]} 49. Kb2 {[%clk 0:00:06.8]}
49... Nb6 {[%clk 0:01:00.3]} 50. Rf8 {[%clk 0:00:05.3]} 50... Nc4+ {[%clk
0:01:00]} 51. Kc1 {[%clk 0:00:05.3]} 51... Rg1+ {[%clk 0:00:59.7]} 0-1

[Event "Early-Titled-Tuesday-Blitz-October-10-2023"]
[Site "Chess.com"]
[Date "2023.10.10"]
[Round "6"]
[White "Krakozia"]
[Black "Ermito2020"]
[Result "1-0"]
[WhiteElo "2992"]
[BlackElo "2599"]
[TimeControl "180+1"]
[EndTime "9:04:37 PDT"]
[Termination "Krakozia won on time"]

1. c4 {[%clk 0:03:00.9]} 1... Nf6 {[%clk 0:02:59.5]} 2. Nc3 {[%clk 0:03:00.3]}
2... g6 {[%clk 0:03:00.1]} 3. g3 {[%clk 0:02:59.7]} 3... Bg7 {[%clk 0:02:59.5]}
4. Bg2 {[%clk 0:03:00.2]} 4... O-O {[%clk 0:02:59.8]} 5. d3 {[%clk 0:03:00.4]}
5... d6 {[%clk 0:02:59.8]} 6. Rb1 {[%clk 0:02:59.8]} 6... a5 {[%clk 0:02:58.6]}
7. a3 {[%clk 0:02:59.2]} 7... e5 {[%clk 0:02:53.6]} 8. b4 {[%clk 0:02:59.2]}
8... axb4 {[%clk 0:02:53.3]} 9. axb4 {[%clk 0:03:00.1]} 9... c6 {[%clk
0:02:52.4]} 10. e4 {[%clk 0:02:57.9]} 10... Be6 {[%clk 0:02:48.8]} 11. Nf3
{[%clk 0:02:51.9]} 11... d5 {[%clk 0:02:45.2]} 12. cxd5 {[%clk 0:02:47.3]} 12...
cxd5 {[%clk 0:02:46.1]} 13. O-O {[%clk 0:02:45.9]} 13... dxe4 {[%clk 0:02:37.8]}
14. dxe4 {[%clk 0:02:37.5]} 14... Bc4 {[%clk 0:02:36.7]} 15. Re1 {[%clk
0:02:29.5]} 15... Nbd7 {[%clk 0:02:09.7]} 16. Be3 {[%clk 0:02:11.4]} 16... Ng4
{[%clk 0:02:05.7]} 17. Bg5 {[%clk 0:01:53.4]} 17... Bf6 {[%clk 0:01:29.1]} 18.
Bxf6 {[%clk 0:01:46.8]} 18... Ngxf6 {[%clk 0:01:30]} 19. Qd2 {[%clk 0:01:44.4]}
19... Qe7 {[%clk 0:01:23.4]} 20. Nd5 {[%clk 0:01:28.5]} 20... Bxd5 {[%clk
0:01:19.2]} 21. exd5 {[%clk 0:01:29.4]} 21... Qd6 {[%clk 0:01:19.8]} 22. Qh6
{[%clk 0:01:22.4]} 22... Ng4 {[%clk 0:01:04.1]} 23. Qh4 {[%clk 0:01:19.6]} 23...
Ngf6 {[%clk 0:00:54.5]} 24. Nd2 {[%clk 0:01:15.7]} 24... Rfc8 {[%clk 0:00:35.2]}
25. Nc4 {[%clk 0:01:11.5]} 25... Qe7 {[%clk 0:00:13.6]} 26. d6 {[%clk
0:01:10.2]} 26... Qe6 {[%clk 0:00:14.1]} 27. Na5 {[%clk 0:00:59.7]} 27... Ra7
{[%clk 0:00:12.1]} 28. Nxb7 {[%clk 0:00:53.4]} 28... Rb8 {[%clk 0:00:11.2]} 29.
Na5 {[%clk 0:00:42.2]} 29... Ra6 {[%clk 0:00:05.7]} 30. Nc6 {[%clk 0:00:41.9]}
30... Rbb6 {[%clk 0:00:05.6]} 31. b5 {[%clk 0:00:40.3]} 31... Ra2 {[%clk
0:00:05.1]} 32. Qb4 {[%clk 0:00:30.6]} 32... Kg7 {[%clk 0:00:01.9]} 33. Qb3
{[%clk 0:00:27.8]} 33... Qxb3 {[%clk 0:00:01.9]} 34. Rxb3 {[%clk 0:00:28.7]}
34... Rd2 {[%clk 0:00:01.8]} 35. Na5 {[%clk 0:00:26.3]} 1-0

[Event "Early-Titled-Tuesday-Blitz-October-10-2023"]
[Site "Chess.com"]
[Date "2023.10.10"]
[Round "6"]
[White "YouShallNotPass001"]
[Black "gueraumasague"]
[Result "1-0"]
[WhiteElo "2403"]
[BlackElo "2506"]
[TimeControl "180+1"]
[EndTime "9:04:38 PDT"]
[Termination "YouShallNotPass001 won on time"]

1. Nf3 {[%clk 0:03:00.9]} 1... g6 {[%clk 0:03:00.9]} 2. e3 {[%clk 0:03:01.8]}
2... Bg7 {[%clk 0:03:00.3]} 3. Be2 {[%clk 0:03:02.7]} 3... Nf6 {[%clk
0:03:00.8]} 4. O-O {[%clk 0:03:03.6]} 4... O-O {[%clk 0:03:01.1]} 5. b4 {[%clk
0:03:03.8]} 5... d6 {[%clk 0:02:59.2]} 6. d4 {[%clk 0:03:03.5]} 6... e5 {[%clk
0:02:54.9]} 7. c4 {[%clk 0:03:03.6]} 7... exd4 {[%clk 0:02:49]} 8. exd4 {[%clk
0:03:03.2]} 8... Re8 {[%clk 0:02:46.5]} 9. Nc3 {[%clk 0:03:02.8]} 9... Nc6
{[%clk 0:02:38.2]} 10. b5 {[%clk 0:03:01.6]} 10... Ne7 {[%clk 0:02:38.1]} 11. h3
{[%clk 0:02:59]} 11... Bf5 {[%clk 0:02:34.1]} 12. a4 {[%clk 0:02:55.7]} 12...
Ne4 {[%clk 0:02:28.4]} 13. Nxe4 {[%clk 0:02:53.2]} 13... Bxe4 {[%clk 0:02:29.3]}
14. Bb2 {[%clk 0:02:47.6]} 14... Nf5 {[%clk 0:02:22.5]} 15. Nd2 {[%clk
0:02:30.6]} 15... Nxd4 {[%clk 0:01:08.7]} 16. Nxe4 {[%clk 0:02:25.1]} 16... Rxe4
{[%clk 0:01:07.3]} 17. Bd3 {[%clk 0:01:49.9]} 17... Rh4 {[%clk 0:00:48.3]} 18.
g3 {[%clk 0:01:36.1]} 18... Rxh3 {[%clk 0:00:40]} 19. Kg2 {[%clk 0:01:21.6]}
19... Rh5 {[%clk 0:00:25.4]} 20. Be4 {[%clk 0:01:20.4]} 20... Ne6 {[%clk
0:00:15.2]} 21. Bxg7 {[%clk 0:01:18.3]} 21... Kxg7 {[%clk 0:00:16.1]} 22. Bxb7
{[%clk 0:01:18.1]} 22... Rb8 {[%clk 0:00:16.3]} 23. Bd5 {[%clk 0:01:18.2]} 23...
Qf6 {[%clk 0:00:15.5]} 24. Ra3 {[%clk 0:01:15.9]} 24... Nd4 {[%clk 0:00:15.1]}
25. Rd3 {[%clk 0:01:13.2]} 25... Nf5 {[%clk 0:00:14.9]} 26. Rf3 {[%clk
0:00:59.7]} 26... Qg5 {[%clk 0:00:13.7]} 27. Rf4 {[%clk 0:00:51.3]} 27... Rh4
{[%clk 0:00:11.1]} 28. Rxh4 {[%clk 0:00:24.5]} 28... Nxh4+ {[%clk 0:00:12]} 29.
Kg1 {[%clk 0:00:24.5]} 29... Re8 {[%clk 0:00:11.3]} 30. Re1 {[%clk 0:00:23.5]}
30... Rxe1+ {[%clk 0:00:04.8]} 31. Qxe1 {[%clk 0:00:24.4]} 31... Nf5 {[%clk
0:00:05.1]} 32. Qe8 {[%clk 0:00:24.1]} 32... Qf6 {[%clk 0:00:05]} 33. Qd7 {[%clk
0:00:23.2]} 33... Qa1+ {[%clk 0:00:01.3]} 34. Kg2 {[%clk 0:00:22.8]} 34... Qxa4
{[%clk 0:00:01.6]} 35. Qxf7+ {[%clk 0:00:21.6]} 35... Kh6 {[%clk 0:00:02.5]} 36.
Qf8+ {[%clk 0:00:20.6]} 36... Kg5 {[%clk 0:00:01.7]} 37. f4+ {[%clk 0:00:17.6]}
1-0

[Event "Early-Titled-Tuesday-Blitz-October-10-2023"]
[Site "Chess.com"]
[Date "2023.10.10"]
[Round "6"]
[White "McCarthyStone"]
[Black "Mikhail_Golubev"]
[Result "1-0"]
[WhiteElo "2426"]
[BlackElo "2605"]
[TimeControl "180+1"]
[EndTime "9:04:42 PDT"]
[Termination "McCarthyStone won on time"]

1. e4 {[%clk 0:03:00.9]} 1... c5 {[%clk 0:02:59.1]} 2. g3 {[%clk 0:03:01.3]}
2... d5 {[%clk 0:02:56.8]} 3. exd5 {[%clk 0:03:02.2]} 3... Qxd5 {[%clk
0:02:56.5]} 4. Nf3 {[%clk 0:03:02.9]} 4... Nc6 {[%clk 0:02:54.7]} 5. Bg2 {[%clk
0:03:03.2]} 5... Qe6+ {[%clk 0:02:42.7]} 6. Kf1 {[%clk 0:03:03.3]} 6... Nf6
{[%clk 0:02:40.4]} 7. d3 {[%clk 0:03:00.2]} 7... g6 {[%clk 0:02:37.4]} 8. Na3
{[%clk 0:02:59.3]} 8... Bg7 {[%clk 0:02:36.2]} 9. Nb5 {[%clk 0:02:57.9]} 9...
Qd7 {[%clk 0:02:24]} 10. Bf4 {[%clk 0:02:57.4]} 10... Nd5 {[%clk 0:02:19.5]} 11.
Bd2 {[%clk 0:02:29.3]} 11... Bxb2 {[%clk 0:02:08.2]} 12. c4 {[%clk 0:02:22.3]}
12... Nc7 {[%clk 0:02:04.3]} 13. Bc3 {[%clk 0:02:06.9]} 13... Bxc3 {[%clk
0:02:00.3]} 14. Nxc3 {[%clk 0:02:07.8]} 14... Nb4 {[%clk 0:01:44.2]} 15. d4
{[%clk 0:01:57.6]} 15... O-O {[%clk 0:01:30.7]} 16. a3 {[%clk 0:01:57.5]} 16...
cxd4 {[%clk 0:01:21.4]} 17. Nxd4 {[%clk 0:01:53.7]} 17... Nba6 {[%clk
0:01:15.5]} 18. Rb1 {[%clk 0:01:47.4]} 18... Nc5 {[%clk 0:01:11.7]} 19. Nd5
{[%clk 0:01:47.8]} 19... Nxd5 {[%clk 0:01:05.1]} 20. cxd5 {[%clk 0:01:48.7]}
20... e5 {[%clk 0:00:58.5]} 21. Nb5 {[%clk 0:01:29.8]} 21... b6 {[%clk
0:00:53.2]} 22. h4 {[%clk 0:01:25.2]} 22... Ba6 {[%clk 0:00:52.1]} 23. a4 {[%clk
0:01:22.1]} 23... Rad8 {[%clk 0:00:49.2]} 24. Kg1 {[%clk 0:01:22.1]} 24... e4
{[%clk 0:00:46.8]} 25. h5 {[%clk 0:01:22.1]} 25... Bxb5 {[%clk 0:00:44]} 26.
hxg6 {[%clk 0:01:03.6]} 26... fxg6 {[%clk 0:00:35.8]} 27. axb5 {[%clk
0:00:51.7]} 27... Qxd5 {[%clk 0:00:32.4]} 28. Qg4 {[%clk 0:00:52.3]} 28... Qd4
{[%clk 0:00:17]} 29. Qh4 {[%clk 0:00:45.2]} 29... Qxf2+ {[%clk 0:00:13.7]} 30.
Kh2 {[%clk 0:00:45.2]} 30... Rd5 {[%clk 0:00:11]} 31. Rhf1 {[%clk 0:00:32.7]}
31... Rh5 {[%clk 0:00:10.4]} 32. Qxh5 {[%clk 0:00:28.2]} 32... gxh5 {[%clk
0:00:07.7]} 33. Rxf2 {[%clk 0:00:28.8]} 33... Rxf2 {[%clk 0:00:07.9]} 34. Ra1
{[%clk 0:00:29.7]} 34... Rf7 {[%clk 0:00:07.6]} 35. Kg1 {[%clk 0:00:28.2]} 35...
Re7 {[%clk 0:00:07.1]} 36. Kf2 {[%clk 0:00:23.4]} 36... e3+ {[%clk 0:00:06.7]}
37. Ke2 {[%clk 0:00:23.8]} 37... Kg7 {[%clk 0:00:05]} 38. Bd5 {[%clk 0:00:23.6]}
38... Kg6 {[%clk 0:00:04]} 39. Rf1 {[%clk 0:00:24.2]} 39... Kg5 {[%clk
0:00:03.7]} 40. Rf8 {[%clk 0:00:23.2]} 1-0

[Event "Early-Titled-Tuesday-Blitz-October-10-2023"]
[Site "Chess.com"]
[Date "2023.10.10"]
[Round "6"]
[White "Josgar05"]
[Black "Javylavilla"]
[Result "1-0"]
[WhiteElo "2258"]
[BlackElo "2388"]
[TimeControl "180+1"]
[EndTime "9:04:45 PDT"]
[Termination "Josgar05 won by resignation"]

1. Nf3 {[%clk 0:02:58.9]} 1... d5 {[%clk 0:02:59.3]} 2. g3 {[%clk 0:02:58.5]}
2... Nf6 {[%clk 0:02:59.4]} 3. Bg2 {[%clk 0:02:59]} 3... g6 {[%clk 0:02:59.4]}
4. d4 {[%clk 0:02:58.4]} 4... Bg7 {[%clk 0:02:59.7]} 5. O-O {[%clk 0:02:58.8]}
5... O-O {[%clk 0:03:00.2]} 6. c4 {[%clk 0:02:59.4]} 6... dxc4 {[%clk
0:02:58.3]} 7. Ne5 {[%clk 0:02:57]} 7... c6 {[%clk 0:02:57.9]} 8. Nxc4 {[%clk
0:02:54.3]} 8... Na6 {[%clk 0:02:48.6]} 9. Nc3 {[%clk 0:02:46.1]} 9... Nc7
{[%clk 0:02:48]} 10. e4 {[%clk 0:02:42.5]} 10... Bg4 {[%clk 0:02:46.6]} 11. f3
{[%clk 0:02:39.1]} 11... Be6 {[%clk 0:02:44.9]} 12. Ne3 {[%clk 0:02:39]} 12...
Nfe8 {[%clk 0:02:31.3]} 13. Ne2 {[%clk 0:02:32.9]} 13... Nb5 {[%clk 0:02:21]}
14. d5 {[%clk 0:02:28.5]} 14... cxd5 {[%clk 0:02:21.1]} 15. exd5 {[%clk
0:02:26.9]} 15... Bd7 {[%clk 0:02:19.8]} 16. a4 {[%clk 0:02:26.5]} 16... Nbd6
{[%clk 0:02:19.3]} 17. Kh1 {[%clk 0:02:21.7]} 17... Qb6 {[%clk 0:02:18]} 18. Nc3
{[%clk 0:02:06]} 18... Rc8 {[%clk 0:02:15]} 19. Qd3 {[%clk 0:02:01.4]} 19... Qb3
{[%clk 0:01:31.5]} 20. Ra3 {[%clk 0:02:00.6]} 20... Qb4 {[%clk 0:01:31.4]} 21.
Nc2 {[%clk 0:01:50.8]} 21... Qc4 {[%clk 0:01:29.6]} 22. Qd2 {[%clk 0:01:12]}
22... Qc5 {[%clk 0:01:18.6]} 23. Ne3 {[%clk 0:00:53.7]} 23... Nc4 {[%clk
0:01:17.9]} 24. Nxc4 {[%clk 0:00:53.4]} 24... Qxc4 {[%clk 0:01:18.8]} 25. Re1
{[%clk 0:00:52.4]} 25... Bf6 {[%clk 0:01:13.8]} 26. Bf1 {[%clk 0:00:51.9]} 26...
Qc5 {[%clk 0:01:10.9]} 27. Ne4 {[%clk 0:00:51.8]} 27... Qb6 {[%clk 0:01:08.2]}
28. Nxf6+ {[%clk 0:00:50.9]} 28... Qxf6 {[%clk 0:01:09.1]} 29. b4 {[%clk
0:00:47.1]} 29... Nd6 {[%clk 0:01:08.9]} 30. Bb2 {[%clk 0:00:46.4]} 30... Qf5
{[%clk 0:01:05]} 31. Qd4 {[%clk 0:00:44.1]} 31... f6 {[%clk 0:01:02.6]} 32. Rae3
{[%clk 0:00:38.8]} 32... Rc2 {[%clk 0:01:00]} 33. Bd3 {[%clk 0:00:38.8]} 33...
Rxh2+ {[%clk 0:00:53.2]} 34. Kxh2 {[%clk 0:00:28.7]} 34... Qh5+ {[%clk
0:00:54.1]} 35. Kg1 {[%clk 0:00:27.8]} 35... Nf5 {[%clk 0:00:46.3]} 36. Bxf5
{[%clk 0:00:26.6]} 36... Bxf5 {[%clk 0:00:45.6]} 37. Qh4 {[%clk 0:00:25.8]}
37... Qxh4 {[%clk 0:00:45]} 38. gxh4 {[%clk 0:00:26.7]} 38... Rc8 {[%clk
0:00:44.6]} 39. Rc3 {[%clk 0:00:26.9]} 39... Rd8 {[%clk 0:00:44.5]} 40. Rxe7
{[%clk 0:00:24.4]} 40... Rxd5 {[%clk 0:00:43.7]} 41. Rcc7 {[%clk 0:00:24.4]}
41... Rd1+ {[%clk 0:00:42.7]} 42. Kf2 {[%clk 0:00:21.2]} 42... Rd2+ {[%clk
0:00:43.6]} 43. Ke3 {[%clk 0:00:20.8]} 43... Rd3+ {[%clk 0:00:40.2]} 44. Ke2
{[%clk 0:00:20.7]} 44... Rd8 {[%clk 0:00:38.7]} 45. Rg7+ {[%clk 0:00:19.6]}
45... Kf8 {[%clk 0:00:38.8]} 46. Rgf7+ {[%clk 0:00:19.9]} 46... Kg8 {[%clk
0:00:38.1]} 47. Bxf6 {[%clk 0:00:20.4]} 1-0

[Event "Early-Titled-Tuesday-Blitz-October-10-2023"]
[Site "Chess.com"]
[Date "2023.10.10"]
[Round "6"]
[White "DrVelja"]
[Black "astralpulse"]
[Result "1-0"]
[WhiteElo "2844"]
[BlackElo "2708"]
[TimeControl "180+1"]
[EndTime "9:04:48 PDT"]
[Termination "DrVelja won on time"]

1. e4 {[%clk 0:03:00.9]} 1... e5 {[%clk 0:02:59.3]} 2. Nf3 {[%clk 0:03:01.1]}
2... Nc6 {[%clk 0:02:59.5]} 3. Bb5 {[%clk 0:03:01.8]} 3... a6 {[%clk 0:02:58.7]}
4. Ba4 {[%clk 0:03:02.4]} 4... d6 {[%clk 0:02:58.7]} 5. O-O {[%clk 0:03:01.2]}
5... Bd7 {[%clk 0:02:58.7]} 6. c4 {[%clk 0:03:01.6]} 6... Nge7 {[%clk
0:02:58.2]} 7. Re1 {[%clk 0:02:59.7]} 7... Ng6 {[%clk 0:02:58]} 8. Bxc6 {[%clk
0:02:59]} 8... Bxc6 {[%clk 0:02:43.4]} 9. d4 {[%clk 0:02:59.9]} 9... Be7 {[%clk
0:02:43]} 10. Nc3 {[%clk 0:02:59.8]} 10... O-O {[%clk 0:02:42.7]} 11. Nd5 {[%clk
0:02:55.9]} 11... Bd7 {[%clk 0:02:31.9]} 12. Qb3 {[%clk 0:02:52.7]} 12... Rb8
{[%clk 0:02:18.8]} 13. Be3 {[%clk 0:02:51.7]} 13... exd4 {[%clk 0:01:47.6]} 14.
Nxd4 {[%clk 0:02:50.3]} 14... c6 {[%clk 0:01:37.5]} 15. Nxe7+ {[%clk 0:02:48.9]}
15... Qxe7 {[%clk 0:01:37]} 16. f3 {[%clk 0:02:49.7]} 16... f6 {[%clk
0:01:24.8]} 17. c5+ {[%clk 0:02:37.6]} 17... Kh8 {[%clk 0:01:21.2]} 18. cxd6
{[%clk 0:02:38.1]} 18... Qxd6 {[%clk 0:01:21.5]} 19. Rad1 {[%clk 0:02:38.8]}
19... Qe7 {[%clk 0:01:19.7]} 20. Ne2 {[%clk 0:02:27]} 20... Be6 {[%clk
0:01:15.7]} 21. Qc3 {[%clk 0:02:25.8]} 21... Rfd8 {[%clk 0:01:04.5]} 22. Bb6
{[%clk 0:02:25.8]} 22... Rxd1 {[%clk 0:00:48.8]} 23. Rxd1 {[%clk 0:02:26.7]}
23... Re8 {[%clk 0:00:48]} 24. Nd4 {[%clk 0:02:17.8]} 24... Bc8 {[%clk
0:00:47.2]} 25. a4 {[%clk 0:02:03]} 25... h5 {[%clk 0:00:45]} 26. a5 {[%clk
0:02:01.3]} 26... h4 {[%clk 0:00:44.9]} 27. b4 {[%clk 0:01:52.5]} 27... Nf4
{[%clk 0:00:43.4]} 28. Qe3 {[%clk 0:01:46.5]} 28... Qe5 {[%clk 0:00:41.6]} 29.
g3 {[%clk 0:01:21.2]} 29... Nh5 {[%clk 0:00:24.1]} 30. g4 {[%clk 0:01:09.8]}
30... Nf4 {[%clk 0:00:24]} 31. Ne2 {[%clk 0:01:03.2]} 31... Ng6 {[%clk 0:00:18]}
32. Kg2 {[%clk 0:00:50.1]} 32... Qb2 {[%clk 0:00:15.2]} 33. Qd2 {[%clk
0:00:50.3]} 33... Qb3 {[%clk 0:00:13.6]} 34. Nd4 {[%clk 0:00:30.2]} 34... Qc4
{[%clk 0:00:12.1]} 35. Rc1 {[%clk 0:00:30.2]} 35... Qf7 {[%clk 0:00:10.6]} 36.
Rc5 {[%clk 0:00:29.4]} 36... Ne5 {[%clk 0:00:10]} 37. h3 {[%clk 0:00:29.5]}
37... Nd7 {[%clk 0:00:06.6]} 38. Rh5+ {[%clk 0:00:29.1]} 38... Kg8 {[%clk
0:00:07.3]} 39. Nf5 {[%clk 0:00:20.6]} 39... Nxb6 {[%clk 0:00:05.7]} 40. Nd6
{[%clk 0:00:19.8]} 40... Rd8 {[%clk 0:00:05.4]} 41. Rh8+ {[%clk 0:00:18.5]} 1-0